Cogmind - Beta 14 @@@ ROGUE MODE // 2024.09.18 @ 16:43:31 Player: x1123581321345589144233 Result: Destroyed by G-34 Mercenary with Small Laser Performance ------------- Evolutions (1) 500 Regions Visited (3) 600 Robots Destroyed (37) 185 Value Destroyed (1046) 1046 Prototype IDs (0) 0 Alien Tech Used (0) 0 Bonus (0) 0 TOTAL SCORE: 2331 Bonus ------- None Cogmind --------- Core Integrity 0/400 Matter 300/300 Energy 371/375 System Corruption 0% Temperature Cool (8) Movement Walking (120) Location -9/Materials Parts ------- > --- POWER (2) -------- Light Ion Engine > --- PROPULSION (2) --- Aluminum Leg Aluminum Leg > --- UTILITY (3) ------ High-capacity Battery Structural Scanner Light Armor Plating > --- WEAPON (2) ------- Beam Rifle Spread Laser > --- INVENTORY (5) ---- Heat Sink High-capacity Battery (250) EM Shotgun EM Shotgun Light EM Pulse Cannon Peak State ------------ > --- POWER ------------ Ion Engine Light Ion Engine > --- PROPULSION ------- Aluminum Leg Aluminum Leg > --- UTILITY ---------- Heat Sink High-capacity Battery Structural Scanner > --- WEAPON ----------- Spread Laser Light EM Pulse Cannon > --- INVENTORY -------- Light Ion Engine Small Storage Unit High-capacity Battery Small Laser Small Laser [Rating: 11] Favorites ----------- Power Light Ion Engine Engine Light Ion Engine Propulsion Light Treads Treads Light Treads Leg Aluminum Leg Wheel Wheel Utility Small Storage Unit Device Structural Scanner Storage Small Storage Unit Processor Signal Interpreter Protection Light Armor Plating Weapon Light Assault Rifle Energy Gun Particle Gun Energy Cannon Light EM Pulse Cannon Ballistic Gun Light Assault Rifle Build | -11 -10 -10 -9 ------- Run | Yrd Mat Min Mat Slots Evolved 2 | . . . 2 Power 1 | . . . 1 Propulsion . | . . . . Utility 1 | . . . 1 Weapon . | . . . . Parts Attached 40 | 6 11 . 23 Power 8 | 1 1 . 6 Engine 8 | 1 1 . 6 Core . | . . . . Reactor . | . . . . Propulsion 10 | 2 4 . 4 Treads 3 | . 3 . . Leg 5 | . 1 . 4 Wheel 2 | 2 . . . Hover . | . . . . Flight . | . . . . Utility 8 | 1 3 . 4 Device 3 | . 1 . 2 Storage 2 | 1 . . 1 Processor 2 | . 2 . . Hackware . | . . . . Protection 1 | . . . 1 Artifact . | . . . . Weapon 14 | 2 3 . 9 Energy Gun 9 | . 2 . 7 Energy Cannon 1 | . . . 1 Ballistic Gun 4 | 2 1 . 1 Ballistic Cannon . | . . . . Launcher . | . . . . Special Weapon . | . . . . Impact Weapon . | . . . . Slashing Weapon . | . . . . Piercing Weapon . | . . . . Special Melee Weapon . | . . . . Unidentified Prototypes . | . . . . Parts Lost 10 | . 2 . 8 Power 2 | . . . 2 Propulsion 4 | . 1 . 3 Utility 1 | . 1 . . Weapon 3 | . . . 3 Highest Loss Streak 4 | . 2 . 4 To Critical Strikes . | . . . . Average Slot Usage (%) 95 | . 96 100 91 Engine 15 | . 14 14 17 Treads 13 | . 14 28 3 Leg 7 | . . . 15 Wheel 3 | . 12 . . Device 7 | . . . 16 Storage 12 | . 14 14 10 Processor 9 | . 12 14 4 Energy Gun 14 | . 11 14 16 Ballistic Gun 9 | . 15 14 3 Peak Build Rating 11 | 6 8 8 11 Average Rating 8 | 5 7 8 9 On Entrance 5 | . 6 8 8 Naked Turns . | . . . . Heaviest Build 22 | 10 12 12 22 Greatest Support 40 | 26 40 40 40 Greatest Overweight (x) 1 | . 1 . 1 Average Overweight (x) . | . . . . Largest Inventory Capacity 8 | 8 8 8 8 Average Capacity 7 | 6 8 8 6 Most Carried 8 | 6 8 5 5 Average Carried 4 | 3 5 4 3 Final Capacity 8 | 8 8 8 5 Final Carried 6 | 6 4 5 5 Class Distribution -------------------- 67% | Mutant 32% | Scavenger-Mutant Dominant Class ---------------- Mutant | -10/Materials Mutant | -10/Mines Scavenger-Mutant | -9/Materials Resources | -11 -10 -10 -9 ----------- Run | Yrd Mat Min Mat Matter Collected 643 | 207 172 39 225 Remotely . | . . . . Salvage Created 1168 | . 314 220 634 Parts 84 | . 24 19 41 Haulers Intercepted . | . . . . Recyclers Shooed . | . . . . Parts Field Recycled . | . . . . Retrieved Matter . | . . . . Parts Self-Destructed . | . . . . Prevented . | . . . . Kills | -11 -10 -10 -9 ------- Run | Yrd Mat Min Mat Combat Hostiles Destroyed 30 | . 9 7 14 Guns 27 | . 9 7 11 Cannons 1 | . . . 1 AOE 2 | . . . 2 Classes Destroyed 9 | . 3 1 5 Worker 1 | . . . 1 Tunneler 1 | . . 1 . Operator 1 | . . . 1 Watcher 4 | . 1 . 3 Swarmer 7 | . 3 3 1 Grunt 19 | . 6 4 9 Brawler 1 | . . . 1 Duelist 1 | . . . 1 Sentry 2 | . . . 2 Best Kill Streak 3 | . 3 3 3 Combat Bots Only 3 | . 3 3 2 Max Kills in Single Turn 2 | . 2 2 2 Gunslinging 1 | . 1 . . Exploded 2 | . . . 2 Melee . | . . . . Uniques/NPCs Destroyed . | . . . . Combat | -11 -10 -10 -9 -------- Run | Yrd Mat Min Mat Hostile Shots Fired 172 | . 52 27 93 Missed 56 | . 20 8 28 Damage Taken 1747 | . 383 206 1158 Core 621 | . 130 89 402 Absorbed by Shields . | . . . . Regen/Repaired (Parts) 65 | . 25 . 40 Core Remaining (%) 56 | 100 . 12 . Volleys Fired 105 | . 31 19 55 Largest 2 | . 2 2 2 Hottest 121 | . 85 85 121 Shots Fired 202 | . 62 38 102 Gun 196 | . 62 38 96 Cannon 6 | . . . 6 Launcher . | . . . . Special . | . . . . Kinetic 87 | . 38 19 30 Thermal 98 | . 24 19 55 Explosive . | . . . . Electromagnetic 17 | . . . 17 Robot Hit Streak 11 | . 7 6 11 Robot Miss Streak 6 | . 6 3 5 Penetration Max . | . . . . Secondary Targets 5 | . 2 1 2 Max Gunslinging Chain 1 | . 1 1 1 Shots Hit Robots 123 | . 32 22 69 Core Hits 70 | . 19 11 40 Critical Kills . | . . . . Critical Parts Destroyed . | . . . . Critical Strikes 1 | . . . 1 Burn 1 | . . . 1 Melee Attacks . | . . . . Impact . | . . . . Slashing . | . . . . Piercing . | . . . . Sneak Attacks . | . . . . Combat Hostiles . | . . . . Follow-up Attacks . | . . . . Damage Inflicted 1661 | . 357 306 998 Guns 1438 | . 356 306 776 Cannons 74 | . . . 74 Explosions 148 | . . . 148 Melee . | . . . . Ramming 1 | . 1 . . Kinetic 394 | . 201 62 131 Thermal 1037 | . 155 244 638 Explosive . | . . . . Electromagnetic 229 | . . . 229 Impact . | . . . . Slashing . | . . . . Piercing . | . . . . Highest Corruption 1 | . 1 1 . Average Corruption 1 | . 1 1 . Corruption Purged . | . . . . Corruption Blocked . | . . . . Effects 5 | . . 5 . Message Errors 1 | . . 1 . Heat Flow Errors 1 | . . 1 . Energy Discharges 1 | . . 1 . Data Loss (minor) 2 | . . 2 . Overload Shots . | . . . . Overflow Damage 14 | . . . 14 Projectiles . | . . . . Explosions 14 | . . . 14 Melee . | . . . . Knockbacks . | . . . . Impact . | . . . . Kinetic . | . . . . Secondary . | . . . . Self-Inflicted Damage 60 | . . . 60 Shots 3 | . . . 3 Rammed 1 | . 1 . . Targets Rammed 1 | . 1 . . Kicked . | . . . . Crushed . | . . . . Highest Temperature 458 | . 184 458 247 Average Temperature 94 | . 65 145 84 Received Heat Transfer 528 | . 162 81 285 Siege Activations . | . . . . Robots Corrupted . | . . . . Combat Hostiles . | . . . . Parts Fried 2 | . . . 2 Impact Corruptions . | . . . . Robots Melted . | . . . . Combat Hostiles . | . . . . Parts Melted 2 | . . 1 1 Heat Transferred 2163 | . 370 555 1238 Parts Sabotaged . | . . . . Parts Stolen . | . . . . Parts Stripped . | . . . . Power Chain Reactions 1 | . . . 1 Alert | -11 -10 -10 -9 ------- Run | Yrd Mat Min Mat Peak Influence 249 | . 249 174 201 Initial 34 | . . 34 21 Average 85 | . 121 61 87 Maximum Alert Level 1 | . 1 . 1 Low Security (%) 98 | 100 97 100 98 Level 1 1 | . 2 . 1 Level 2 . | . . . . Level 3 . | . . . . Level 4 . | . . . . Level 5 . | . . . . High Security . | . . . . Max Security . | . . . . Squads Dispatched 5 | . 2 . 3 Investigation 3 | . 1 . 2 Extermination . | . . . . Reinforcement 2 | . 1 . 1 Assault . | . . . . Garrison . | . . . . Intercept . | . . . . Searches Triggered . | . . . . Construction Impeded . | . . . . Haulers Reinforced . | . . . . Active Scanning Responses . | . . . . Cargo Convoy Interrupts . | . . . . Stealth | -11 -10 -10 -9 --------- Run | Yrd Mat Min Mat Distress Signals 3 | . . . 3 Communications Jammed . | . . . . Distress Signals . | . . . . Times Spotted 49 | . 15 9 25 Peak Tracking Total 5 | . 4 3 5 Tactical Retreats 3 | . . 1 2 Traps | -11 -10 -10 -9 ------- Run | Yrd Mat Min Mat Traps Triggered 4 | . 3 . 1 Indirectly . | . . . . Trap Hack Attempts . | . . . . Triggered . | . . . . Disarmed . | . . . . Reprogrammed . | . . . . Reused . | . . . . Traps Extracted . | . . . . Installed . | . . . . Triggered . | . . . . Machines | -11 -10 -10 -9 ---------- Run | Yrd Mat Min Mat Machines Disabled 3 | . . . 3 Max in Single Turn 3 | . . . 3 Machines Repaired . | . . . . Machines Dismantled . | . . . . Machines Sabotaged . | . . . . Overloaded Fab Kills . | . . . . Hacking | -11 -10 -10 -9 --------- Run | Yrd Mat Min Mat Machines Accessed 6 | . 2 . 4 Terminals 4 | . 1 . 3 Fabricators . | . . . . Repair Stations 2 | . 1 . 1 Recycling Units . | . . . . Scanalyzers . | . . . . Garrison Access . | . . . . Total Hacks 29 | . 11 . 18 Successful 23 | . 7 . 16 Failed 6 | . 4 . 2 Catastrophic . | . . . . Database Lockouts . | . . . . Manual 1 | . . . 1 Terminals 19 | . 6 . 13 Fabricators . | . . . . Repair Stations 10 | . 5 . 5 Recycling Units . | . . . . Scanalyzers . | . . . . Garrison Access . | . . . . Terminal Hacks 15 | . 3 . 12 Record 11 | . 3 . 8 Alert Level 1 | . . . 1 Maintenance Status 1 | . . . 1 Hauler Manifests 1 | . . . 1 Zone Layout 1 | . . . 1 Fabricator Hacks . | . . . . Repair Station Hacks 8 | . 4 . 4 Scan Component 4 | . 2 . 2 Repair 4 | . 2 . 2 Recycling Unit Hacks . | . . . . Scanalyzer . | . . . . Garrison Access Hacks . | . . . . Unauthorized Hacks . | . . . . Terminals . | . . . . Fabricators . | . . . . Repair Stations . | . . . . Recycling Units . | . . . . Scanalyzers . | . . . . Garrison Access . | . . . . Data Cores Recovered . | . . . . Used . | . . . . Hacking Detections 3 | . 1 . 2 Full Trace Events 1 | . . . 1 Feedback Events . | . . . . Feedback Blocked . | . . . . Robot Schematics Acquired . | . . . . Robots Built . | . . . . Authchips . | . . . . Time . | . . . . Total Robot Build Rating . | . . . . Part Schematics Acquired . | . . . . Parts Built . | . . . . Authchips . | . . . . Time . | . . . . Total Part Build Rating . | . . . . Parts Repaired 4 | . 2 . 2 Time 110 | . 58 . 52 Parts Recycled . | . . . . Recycled Matter . | . . . . Retrieved Matter . | . . . . Retrieved Components . | . . . . Parts Scanalyzed . | . . . . Part Schematics Acquired . | . . . . Parts Damaged . | . . . . Bothacking | -11 -10 -10 -9 ------------ Run | Yrd Mat Min Mat Used RIF Installer . | . . . . Robots Hacked . | . . . . Non-combat . | . . . . Combat . | . . . . Robot Hacks Applied . | . . . . Relay Couplers Released . | . . . . Fabnet Peak Effective % . | . . . . Robots Rewired . | . . . . Allies Hacked . | . . . . Hacks Repelled . | . . . . Allies | -11 -10 -10 -9 -------- Run | Yrd Mat Min Mat Total Allies . | . . . . Largest Group . | . . . . Highest-Rated Group . | . . . . Highest-Rated Ally . | . . . . Total Orders . | . . . . Ally Attacks . | . . . . Total Damage . | . . . . Kills . | . . . . Allies Corrupted . | . . . . Allies Melted . | . . . . Intel | -11 -10 -10 -9 ------- Run | Yrd Mat Min Mat Robot Analysis Total . | . . . . Derelict Logs Recovered . | . . . . Drone Launches . | . . . . Drone Recoveries . | . . . . Exploration | -11 -10 -10 -9 ------------- Run | Yrd Mat Min Mat Turns Passed 2227 | 80 537 635 975 Spaces Moved 1203 | 74 335 259 535 Core 4 | 4 . . . Treads 496 | . 155 259 82 Legs 453 | . . . 453 Wheels 250 | 70 180 . . Hover . | . . . . Flight . | . . . . Fastest Speed 50 | 50 90 160 120 Average Speed 133 | 87 122 160 133 Slowest Speed 190 | 100 160 160 190 Overloaded Moves . | . . . . Propulsion Burnouts . | . . . . Robots Hopped . | . . . . Cave-ins Triggered . | . . . . Exploration Rate (%) 33 | 4 55 40 36 Regions Visited 3 Branch Regions 1 Pre-discovered Areas 1 | . . 1 . Known Exits Taken 2 | . 1 1 . Unknown Exits Taken 1 | 1 . . . Scrap Searched . | . . . . Spaces Dug . | . . . . Terrain Destroyed 4 | . . . 4 Melee . | . . . . Projectile . | . . . . AOE 4 | . . . 4 Terrain Rammed . | . . . . Walls Destroyed . | . . . . Machines Disabled . | . . . . Actions | -11 -10 -10 -9 --------- Run | Yrd Mat Min Mat Total 1640 | 85 408 446 701 Wait 252 | . 21 168 63 Move 1200 | 73 334 258 535 Hop . | . . . . Pick Up 16 | 6 2 1 7 Fast Attach 24 | 6 4 . 14 Attach 11 | . 5 . 6 Detach 11 | . 4 . 7 Swap 5 | . 2 . 3 Drop 15 | . 4 . 11 Fire 105 | . 31 19 55 Melee . | . . . . Ram . | . . . . Kick . | . . . . Crush 1 | . 1 . . Escape Stasis . | . . . . Rewire . | . . . . Trap . | . . . . Miscellaneous . | . . . . Route ------- -11/Scrapyard -10/Materials (discovered 2 exits: *Mat / *Min) -10/Mines -9/Materials (discovered 3 exits: [*Mat] / [*Min] / [Sto]) History --------- Turn | Location | Event 5 | -11/Scrapyard | Discovered new exit (range 16) 81 | -11/Scrapyard | Entered Materials 245 | -10/Materials | Discovered new exit (range 6) 307 | -10/Materials | Build established: Mutant 432 | -10/Materials | Discovered new exit (range 10) 445 | -10/Materials | Identified exit to Mines 482 | -10/Materials | Core integrity fell below 50% 545 | -10/Materials | Repaired Lgt. Treads 577 | -10/Materials | Repaired Particle Gun 618 | -10/Materials | Entered Mines 619 | -10/Mines | Learned location of Storage (-9) 650 | -10/Mines | Met a Derelict bent on vengeance 791 | -10/Mines | Excavation squad dispatched 791 | -10/Mines | A large section of the Mines collapsed 958 | -10/Mines | Discovered new exit (range 15) 972 | -10/Mines | Core integrity fell below 20% 1252 | -10/Mines | Identified exit to Materials 1253 | -10/Mines | Entered Materials 1253 | -9/Materials | Evolved 2 slots: Power x1, Utility x1 1522 | -9/Materials | Core integrity fell below 50% 1548 | -9/Materials | Lost 4 parts (1p1n2w) 1569 | -9/Materials | Core integrity fell below 20% 1759 | -9/Materials | Build established: Scavenger-Mutant 1832 | -9/Materials | Repaired Ion Engine 1858 | -9/Materials | Repaired Aluminum Leg 1915 | -9/Materials | Discovered new exit (range 20) 1963 | -9/Materials | Discovered new exit (range 10) 2018 | -9/Materials | Discovered new exit (range 16) 2228 | -9/Materials | Destroyed by G-34 Mercenary with Small Laser Last Messages --------------- EXIT=FOUND R-06 Scavenger collects Sml. Laser. Acquired Lgt. Armor Plating. O-16 Technician: "IFF HANDSHAKE FAILED. SECURING TERMINAL." O-16 Technician sends out distress signal. Destroyed Flight Unit. ALERT: Hostiles spotted, dispatching reinforcements to Terminal M010. S-10 Pest destroyed. Ion Engine destroyed. Acquired 10 matter. Y-45 Defender destroyed. Acquired 12 matter. Triggered Alarm Trap. An alarm sounds. ALERT: Alarm triggered, dispatching investigation squad. Aluminum Leg melted. G-34 Mercenary destroyed. Map ----- +----------------------------------------------------+ | ??????????????????????????????## """ """ | | ??????????????????????????????## | | ??????????????????????????????## | | ????# ???????????????????????## | | ????#+#???????????????????????######+#### | | ????# #???????????????????????#### ## | | ????? ??????????????????????????## | | ????? ??????????????????????????## | | ???## ##????????????????????????## | | ???## ##????????????????????????## ## | | ???## ##????????????????????????### ### | | ???## ##?????????????????########## ### | | ???## ##???? ###????????########## ### | | ???## ##????#####????????## !!| ## ### | | ???## ???? ##????????##= !|| ## ### | | ???## ######## ##????????## || ## ### | | ???##+######## ##????????## ## ### | | ???## # ##????????## ! ## ### | | ???## " # ############ ## ### | | ???## "" # ################+### ### | | ???## "T # | | ???## " % | | ???## " # ![= | | ??### ###g#######+################ | | ??## ###[###### ####### | | ??### ###@###### ????????????????? | | ??##############%=! # ????????????????? | | ???#############[% # ????????????????? | | ??????????????## """ # ????????????????? | | ??????????????## """ # ????????????????? | | ??????????????## """ # ????????????????? | | ??????????????## ##????????????????? | | ??????????????#####+####????????????????? | | ?????????????? ????????????????? | | ????????????????????????????????????????? | | ????????????????????????????????????????? | | ????????????????????????????????????????? | | ????????????????????????????????????????? | | ????????????????????????????????????????? | | ????????????????????????????????????????? | | ????????????????????????????????????????? | | | | | | | | | | | | | | | | | | | +----------------------------------------------------+ Best States ------------- Heat Dissipation 38 Energy Generation 15 Energy Capacity 525 Matter Stores 300 Matter Capacity 300 Sight Range 16 Terrain Scan Density 10 Armor Coverage 150 Evasion (%) 55 Targeting Accuracy 5 Recoil Reduction 2 Item Schematics ----------------- None Robot Schematics ------------------ None Fabricated ------------ Nothing Alien Tech Used ----------------- None Achievements -------------- Librarian Part-time Mechanic Shopping List Challenges ------------ None Game ------ Seed GunCouplerExtrapolator Manual? 0 Play Time 00:35:45 Cumulative 1.8 hours Start 2024.09.18 @ 16:08:39 End 2024.09.18 @ 16:43:31 Sessions 5 Manual Loads 0 Difficulty Rogue Special Mode None Game No. 4 Rogue 4 Adventurer 0 Explorer 0 Win Type - Total 0 Types 0/0/0/0/0/0/0/0/0 Lore% 0 Gallery% 4 Achievement% 6 Wizard Run 0 Options --------- Layout 1 ASCII 0 Keyboard 1 Movement Numpad Keybinds 0 Fullscreen 1 Font 24/Smallcaps Map View 50x35 Zoom Use 0% Tactical HUD 0 Map Filters NONE Filters NONE Steam 1 RUN: 92d8cde2-767f-49ab-8137-2e0f62fee12e